bitfinex/quotes_ETHUSD_20250411
["timestamp","ask_amount","ask_price","bid_price","bid_amount"]
[1744331215234,6.57207,1521.6,1521.3,3.0]
[1744331215435,6.57263,1521.5,1521.1,6.56828456]
[1744331215618,6.57306,1521.4,1521.2,3.0]
[1744331215925,6.57248,1521.5,1521.2,0.95682846]
[1744331216119,13.14522,1521.5,1521.2,3.95682846]
[1744331216426,6.57298,1521.4,1521.2,3.95682846]
[1744331216628,6.57298,1521.4,1521.2,3.0]
[1744331216844,13.14615,1521.4,1521.1,6.56828456]
[1744331217346,6.57421,1521.1,1520.9,1.0042]
[1744331218338,13.14878,1521.1,1520.9,1.0042]
[1744331218543,6.5748,1521.0,1520.7,6.2518464]
[1744331218843,13.14982,1521.0,1520.8,3.0]
[1744331219144,6.5748,1521.0,1520.8,3.0]
[1744331220527,6.57247,1521.5,1521.1,9.57403]
[1744331220728,6.57293,1521.4,1521.1,8.7018464]
[1744331220929,13.14623,1521.4,1521.1,4.0042]
[1744331221231,13.14605,1521.4,1521.1,4.0042]
[1744331221445,13.14606,1521.4,1521.1,4.0042]
[1744331221607,0.9936,1521.6,1521.1,5.062065]
[1744331221811,6.5726,1521.5,1521.1,11.636065]
[1744331222244,6.5726,1521.5,1521.1,12.1265184]
[1744331222651,6.57344,1521.3,1521.1,2.062065]
[1744331222942,6.57344,1521.3,1521.1,1.0042]
[1744331223712,6.57392,1521.2,1521.0,3.0]
[1744331223909,6.57125,1521.8,1521.2,1.0042]
[1744331224110,7.56399,1522.0,1521.5,6.5724]
[1744331224310,14.13463,1522.0,1521.5,8.891124]
[1744331224618,14.13463,1522.0,1521.3,3.0]
[1744331224619,6.57159,1521.7,1521.3,1.0042]
[1744331224836,7.56518,1521.8,1521.3,3.0]
[1744331225015,7.56499,1521.8,1521.4,7.57688]
[1744331225210,7.56499,1521.8,1521.4,14.1496]
[1744331225541,7.12077,1521.9,1521.4,1.0042]
[1744331225746,6.57174,1521.7,1521.2,22.7982589]
[1744331225913,13.14356,1521.7,1521.3,8.85298589]
[1744331226644,7.12159,1521.7,1521.2,10.9922]
[1744331226826,6.57264,1521.5,1521.2,10.9922]
[1744331227033,0.9936,1521.6,1521.3,6.57312]
[1744331227216,6.57167,1521.7,1521.3,13.14623]
[1744331227423,14.13621,1521.8,1521.4,6.57284]
[1744331228150,7.56483,1521.8,1521.4,13.14552]
[1744331228444,7.56483,1521.8,1521.4,1.314552]
[1744331228445,6.57188,1521.7,1521.4,1.314552]
[1744331228739,13.14446,1521.6,1521.2,17.56593]
[1744331229332,0.9936,1521.8,1521.0,1.0042]
[1744331229333,7.12159,1521.7,1521.0,1.0042]
[1744331229536,6.57416,1521.2,1520.8,7.57966]
[1744331229919,6.57523,1520.9,1520.7,0.55]
[1744331230110,6.57548,1520.8,1520.7,0.55]
[1744331233050,7.60446,1521.1,1520.7,8.14518]
[1744331233247,7.60446,1521.1,1520.7,14.72091]
[1744331233459,6.5741,1521.2,1520.8,6.57524]
[1744331233638,7.60306,1521.4,1521.1,6.57404]
[1744331233815,6.57207,1521.6,1521.2,6.57373]
[1744331234016,13.14438,1521.6,1521.3,1.0195]
[1744331234237,6.57261,1521.5,1521.3,1.0195]
[1744331234455,6.57308,1521.4,1521.0,10.59392]
[1744331234756,13.14626,1521.4,1521.0,12.17656489]
[1744331234939,6.57308,1521.4,1521.0,12.17656489]
[1744331235539,13.14634,1521.4,1521.0,12.17656489]
[1744331235734,6.57308,1521.4,1521.0,18.75102489]
[1744331236072,13.1462,1521.4,1521.0,12.17656489]
[1744331238370,13.14435,1521.6,1521.2,6.57361]
[1744331238670,14.17361,1521.7,1521.3,6.5731]
[1744331238870,6.57226,1521.6,1521.2,6.57358]
[1744331239079,13.56121,1521.8,1521.4,6.57264]
[1744331239237,6.57121,1521.8,1521.5,6.57231]
[1744331239437,13.14165,1521.9,1521.5,7.988755]
[1744331239648,13.1418,1521.9,1521.5,7.988695]
[1744331239975,13.14291,1521.8,1521.5,1.416445]
[1744331240475,6.57137,1521.8,1521.5,1.416445]
[1744331240675,13.14281,1521.8,1521.4,8.07692152]
[1744331241478,13.14169,1521.9,1521.5,6.57241]
[1744331241858,6.5712,1521.8,1521.4,8.07713152]
[1744331242167,13.14275,1521.8,1521.4,8.07713152]
[1744331242339,6.5712,1521.8,1521.5,6.57231]
[1744331242545,6.57048,1522.0,1521.6,6.57184]
[1744331242776,6.57048,1522.0,1521.6,13.14368]
[1744331242983,70.91201,1522.1,1521.5,3.0]
[1744331243187,6.57182,1521.7,1521.5,3.0]
[1744331243500,6.57217,1521.6,1521.4,3.0]
[1744331243894,0.55,1521.6,1521.1,8.81133649]
[1744331244101,13.14552,1521.5,1521.1,8.81133649]
[1744331244306,13.14552,1521.5,1521.2,3.0]
[1744331244470,6.57296,1521.4,1521.2,3.0]
[1744331245001,6.57267,1521.5,1521.2,3.0]
[1744331245178,6.57267,1521.5,1521.2,9.57374]
[1744331245687,13.14535,1521.5,1521.2,9.57374]
[1744331245869,6.57293,1521.4,1521.1,1.0195]
[1744331246070,13.14522,1521.5,1521.1,7.59342]
[1744331246608,6.57249,1521.5,1521.1,7.59342]
[1744331246780,7.64791,1521.3,1521.0,6.57452]
[1744331247201,6.57298,1521.4,1521.1,6.5741]
[1744331247374,7.6466,1521.6,1521.1,7.62937]
[1744331247580,6.57267,1521.5,1521.1,14.20354]
[1744331247975,6.57267,1521.5,1521.1,7.62937]
[1744331248167,6.57287,1521.5,1521.1,10.62929]
[1744331248499,13.14574,1521.5,1521.1,11.1150252]
[1744331249267,7.6466,1521.6,1521.1,6.94158798]
[1744331249470,7.6466,1521.6,1521.2,6.57343]
[1744331249871,14.21895,1521.6,1521.2,6.57343]
[1744331250103,6.57246,1521.5,1521.2,6.57343]
[1744331250904,7.6466,1521.6,1521.2,6.57343]
[1744331251076,7.6466,1521.6,1521.2,13.14701]
[1744331251284,7.6466,1521.6,1521.2,6.57343]
[1744331251472,7.64543,1521.9,1521.5,6.5723]
[1744331251665,6.57016,1522.1,1521.5,9.57246]
[1744331251666,6.56988,1522.1,1521.5,9.57246]
[1744331251872,7.64409,1522.2,1521.8,6.57098]
[1744331252080,7.087,1522.3,1522.0,7.62548]
[1744331252406,6.56879,1522.4,1522.1,6.56981]
[1744331252708,14.72928,1522.6,1522.2,6.56935]
[1744331253005,14.72928,1522.6,1522.2,13.13849]
[1744331253165,14.72928,1522.6,1522.2,6.56924]
[1744331253602,14.72928,1522.6,1522.2,13.13847]
[1744331253808,14.72928,1522.6,1522.2,6.56923]
[1744331254313,14.72928,1522.6,1522.2,13.13848]
[1744331254484,14.72928,1522.6,1522.2,6.56923]
[1744331254896,6.56873,1522.4,1522.2,3.0]
[1744331255607,6.56814,1522.5,1522.1,6.56959]
[1744331255908,6.56814,1522.5,1522.2,10.226309]
[1744331256212,6.56814,1522.5,1522.2,3.656959]
[1744331256510,6.56873,1522.4,1522.2,3.0]
[1744331256716,6.56873,1522.4,1522.2,3.48552898]
[1744331258023,6.56814,1522.5,1522.2,3.48552898]
[1744331258426,6.56814,1522.5,1522.2,10.05493898]
[1744331259051,6.56709,1522.8,1522.5,6.56812]
[1744331259237,13.65146,1522.9,1522.5,7.881774]
[1744331259535,6.5652,1523.2,1522.9,6.56641]
[1744331259692,6.5652,1523.2,1522.9,3.0]
[1744331260089,6.56561,1523.1,1522.9,3.0]
[1744331260338,13.64945,1523.4,1523.0,7.62097]
[1744331260537,13.64945,1523.4,1523.0,14.18679]
[1744331260721,13.64945,1523.4,1523.0,14.18674]
[1744331260927,46.23105325,1523.5,1523.0,3.24408206]
[1744331261132,46.23105325,1523.5,1522.8,6.54090114]
[1744331261133,46.23105325,1523.5,1523.4,10.69396]
[1744331261997,46.23105325,1523.5,1523.4,4.1297]
[1744331262228,46.23105325,1523.5,1523.4,3.0]
[1744331262723,46.23105325,1523.5,1523.2,4.1297]
[1744331262925,52.79503325,1523.5,1523.2,4.1297]
[1744331263503,6.56469,1523.3,1523.0,4.1297]
[1744331263697,6.5652,1523.2,1523.0,4.1297]
[1744331263913,6.56469,1523.3,1523.0,1.1297]
[1744331264236,13.12966,1523.3,1523.0,4.61557198]
[1744331265043,13.12966,1523.3,1522.9,6.5664]
[1744331265044,6.56555,1523.1,1522.8,4.1297]
[1744331265202,6.56511,1523.3,1522.8,2.856104]
[1744331265412,6.56511,1523.3,1523.0,3.0]
[1744331265817,14.19444,1523.4,1523.0,9.56598]
[1744331266122,7.6299,1523.4,1523.0,9.56598]
[1744331266441,14.19444,1523.4,1523.0,9.56598]
[1744331266741,6.5647,1523.3,1523.0,9.56598]
[1744331266920,13.12971,1523.3,1523.0,3.0]
[1744331267246,6.56521,1523.2,1523.0,3.0]
[1744331267455,6.56627,1523.0,1522.8,1.62570558]
[1744331267742,13.13266,1523.0,1522.8,1.1297]
[1744331267952,6.56627,1523.0,1522.8,1.1297]
[1744331268917,6.56627,1523.0,1522.6,13.13502]
[1744331268918,6.56722,1522.8,1522.6,1.0657]
[1744331269414,6.56646,1522.9,1522.6,1.0657]
[1744331269629,13.13312,1522.9,1522.6,1.0657]
[1744331269915,6.56691,1522.8,1522.6,1.0657]
[1744331270319,6.56771,1522.6,1522.5,0.55]
[1744331270522,6.16,1523.0,1522.6,1.0657]
[1744331270817,6.56656,1522.9,1522.6,1.0657]
[1744331271019,6.56771,1522.6,1522.5,0.55]
[1744331271752,7.11771,1522.6,1522.5,0.55]
[1744331272451,6.56771,1522.6,1522.5,0.55]
[1744331272956,13.64798,1522.8,1522.5,0.55]
[1744331273119,7.081,1522.8,1522.5,0.55]
[1744331273421,6.56771,1522.6,1522.5,0.55]
[1744331273941,13.64786,1522.8,1522.5,0.55]
[1744331273942,13.64792,1522.8,1522.5,0.55]
[1744331274141,14.39074,1523.0,1522.5,8.18369]
[1744331274142,13.84043,1523.0,1522.5,8.18369]
[1744331274456,6.56603,1523.0,1522.6,6.56769]
[1744331274656,6.56603,1523.0,1522.6,13.13522]
[1744331275267,6.56603,1523.0,1522.7,3.0]
[1744331275632,13.64662,1523.1,1522.7,9.56724]
[1744331275818,0.55,1523.0,1522.5,2.434069]
[1744331276160,0.55,1523.0,1522.7,3.0]
[1744331276161,7.116,1523.0,1522.7,3.0]
[1744331276325,6.566,1523.0,1522.7,3.0]
[1744331276626,13.64663,1523.1,1522.7,16.13423]
[1744331276968,13.13053,1523.2,1522.8,7.68861]
[1744331277274,6.56557,1523.1,1522.8,1.122]
[1744331277424,6.56557,1523.1,1522.5,4.672]
[1744331277425,13.13429,1522.8,1522.5,4.672]
[1744331277620,6.56648,1522.9,1522.5,8.23998]
[1744331277862,6.56606,1523.0,1522.6,7.391528]
[1744331278025,6.56606,1523.0,1522.6,13.959028]
[1744331278426,6.56513,1523.2,1522.8,6.56664]
[1744331278736,6.56513,1523.2,1522.9,7.68834]
[1744331280064,6.56419,1523.5,1523.1,6.56531]
[1744331280232,7.282,1523.7,1523.2,1.122]
[1744331280435,6.56433,1523.4,1523.2,1.122]
[1744331281963,6.56389,1523.5,1523.2,1.122]
[1744331282165,14.39497,1523.7,1523.2,1.122]
[1744331282166,13.84497,1523.7,1523.3,6.56449]
[1744331282472,13.67541,1523.9,1523.5,7.68566]
[1744331282676,13.67541,1523.9,1523.5,7.68562]
[1744331282842,13.67541,1523.9,1523.6,3.0]
[1744331283166,7.113,1523.9,1523.6,3.0]
[1744331283329,6.56297,1523.7,1523.6,3.0]
[1744331283525,6.56296,1523.8,1523.6,3.0]
[1744331284669,13.12576,1523.8,1523.6,3.0]
[1744331285074,6.5628,1523.8,1523.6,3.0]
[1744331285536,6.56297,1523.7,1523.6,3.0]
[1744331285932,6.5628,1523.8,1523.6,3.0]
[1744331286133,13.12561,1523.8,1523.6,3.0]
[1744331286584,6.56306,1523.7,1523.5,1.122]
[1744331286783,6.56306,1523.7,1523.1,7.182]
[1744331286784,6.56426,1523.4,1523.1,7.182]
[1744331286942,6.56347,1523.6,1523.1,3.153362]
[1744331287147,6.56441,1523.4,1523.1,4.122]
[1744331287360,6.56441,1523.4,1523.1,1.122]
[1744331287739,6.56441,1523.4,1523.1,10.68751]
[1744331287951,6.56441,1523.4,1523.1,11.17657837]
[1744331290684,6.56441,1523.4,1523.1,4.61106837]
[1744331290855,6.56493,1523.3,1523.1,4.61106837]
[1744331291179,6.56493,1523.3,1523.1,1.61106837]
[1744331292450,6.56512,1523.2,1523.0,3.0]
[1744331292955,7.6327,1523.3,1522.9,1.0544]
[1744331292956,13.13141,1523.1,1522.9,4.0544]
[1744331293155,6.56624,1523.0,1522.7,1.0544]
[1744331293347,6.56555,1523.1,1522.7,3.1617738]
[1744331293548,13.13328,1522.9,1522.7,1.0544]
[1744331293788,6.56685,1522.8,1522.7,1.0544]
[1744331293971,13.1341,1522.8,1522.6,3.823998]
[1744331294168,13.13475,1522.7,1522.5,0.55]
[1744331294487,8.18571,1522.6,1522.5,0.55]
[1744331294985,14.34571,1522.6,1522.5,0.55]
[1744331296390,7.6349,1522.8,1522.5,0.55]
[1744331296553,13.13404,1522.8,1522.5,0.55]
[1744331296880,6.56731,1522.7,1522.5,1.261842]
[1744331297084,6.56688,1522.8,1522.5,0.55]
[1744331297263,13.13401,1522.8,1522.5,0.55]
[1744331297589,6.5673,1522.7,1522.5,0.55]
[1744331299118,13.13485,1522.7,1522.5,0.55]
[1744331299695,12.72649,1522.9,1522.5,0.55]
[1744331299857,8.18,1523.0,1522.5,0.95383629]
[1744331300051,6.56711,1522.8,1522.5,0.95383629]
[1744331300977,6.56771,1522.6,1522.5,0.55]
[1744331301755,6.56746,1522.7,1522.5,0.55]
[1744331302363,7.11771,1522.6,1522.5,0.55]
[1744331302560,14.74871,1522.6,1522.5,0.55]
[1744331302970,15.29871,1522.6,1522.5,0.55]
[1744331306978,7.63571,1522.6,1522.5,0.55]
[1744331307169,7.11771,1522.6,1522.5,0.55]
[1744331307623,8.25121,1522.6,1522.5,1e-05]
[1744331310003,14.82821,1522.6,1522.5,1e-05]
[1744331310207,7.70121,1522.6,1522.5,1e-05]
[1744331310367,8.25121,1522.6,1522.5,1e-05]
[1744331310569,7.11771,1522.6,1522.5,1e-05]
[1744331311097,6.56771,1522.6,1522.5,1e-05]
[1744331311900,6.56746,1522.7,1522.5,1e-05]
[1744331312072,13.13495,1522.7,1522.5,1e-05]
[1744331312275,13.69393,1522.8,1522.5,1.11261]
[1744331312488,6.56728,1522.7,1522.5,2.537549]
[1744331312701,6.56771,1522.6,1522.5,1e-05]
[1744331313514,6.56728,1522.7,1522.5,1e-05]
[1744331315011,6.56771,1522.6,1522.5,1e-05]
[1744331318736,7.11771,1522.6,1522.5,1e-05]
[1744331319318,14.41121,1522.6,1522.5,1e-05]
[1744331319609,17.41121,1522.6,1522.5,1e-05]
[1744331322116,1.0869,1522.0,1521.4,1.1169]
[1744331322308,13.14367,1521.7,1521.4,1.1169]
[1744331322509,6.57221,1521.6,1521.4,1.1169]
[1744331322686,6.57165,1521.7,1521.4,7.68975]
[1744331322890,13.14351,1521.7,1521.4,1.1169]
[1744331323483,6.57088,1521.9,1521.5,6.57229]
[1744331323680,6.57088,1521.9,1521.5,7.06991682]
[1744331323918,12.73035,1522.0,1521.7,6.57154]
[1744331324076,13.69794,1522.1,1521.7,13.14298]
[1744331324277,7.128,1522.1,1521.8,7.68803]
[1744331324479,7.128,1522.1,1521.8,1.1169]
[1744331324677,6.57073,1521.9,1521.8,1.1169]
[1744331325931,6.57048,1522.0,1521.8,1.1169]
[1744331327996,6.57149,1521.8,1521.6,1.1169]
[1744331328334,6.57148,1521.8,1521.6,1.1169]
[1744331328494,6.57148,1521.8,1521.2,4.6961995]
[1744331328495,1.0869,1521.8,1521.3,10.69015]
[1744331328694,6.57165,1521.7,1521.3,2.65553495]
[1744331328997,13.1427,1521.8,1521.4,6.57271]
[1744331329436,13.28036,1522.0,1521.7,6.57139]
[1744331329729,6.56987,1522.1,1521.8,1.1169]
[1744331330229,6.56949,1522.2,1521.8,7.68786]
[1744331330430,6.56949,1522.2,1521.9,0.768786]
[1744331330635,6.5699,1522.1,1521.8,1.1169]
[1744331330927,6.56969,1522.2,1521.8,1.1169]
[1744331331134,6.56969,1522.2,1521.8,10.68772]
[1744331331344,6.56969,1522.2,1521.9,6.5707]
[1744331331848,13.69802,1522.3,1522.0,1.1169]
[1744331332006,19.29649,1522.5,1522.0,9.112989]
[1744331332207,6.56821,1522.5,1522.1,7.68636]
[1744331332923,6.56774,1522.6,1522.2,6.56926]
[1744331333617,6.56836,1522.5,1522.1,1.1169]
[1744331333935,6.56943,1522.2,1522.1,1.1169]
[1744331334299,6.56943,1522.2,1521.9,4.1169]
[1744331334501,6.57007,1522.1,1521.9,1.1169]
[1744331334898,6.5703,1522.0,1521.9,1.1169]
[1744331336203,6.5703,1522.0,1521.7,4.0319]
[1744331336535,6.5703,1522.0,1521.7,5.092275]
[1744331336735,6.5703,1522.0,1521.7,11.663855]
[1744331338911,6.56994,1522.1,1521.7,11.663715]
[1744331339622,6.56994,1522.1,1521.8,6.571]
[1744331339939,6.56945,1522.2,1521.8,6.571]
[1744331340237,6.56945,1522.2,1522.0,1.0319]
[1744331342642,6.56905,1522.3,1522.0,1.02656825]
[1744331342941,13.13833,1522.3,1522.0,1.02656825]
[1744331343545,6.56944,1522.2,1522.0,1.02656825]
[1744331346807,6.56987,1522.1,1521.8,1.0319]
[1744331347107,13.14011,1522.1,1521.8,4.0319]
[1744331347409,6.56987,1522.1,1521.8,4.0319]
[1744331347736,6.56987,1522.1,1521.8,10.60303]
[1744331348946,6.56947,1522.2,1521.8,18.94095811]
[1744331349653,13.13918,1522.2,1521.8,18.94095811]
[1744331350453,13.13918,1522.2,1521.8,12.36982811]
[1744331352149,6.56947,1522.2,1521.8,18.94082811]
[1744331352349,6.56947,1522.2,1521.9,6.5707]
[1744331352647,6.56947,1522.2,1521.8,12.36982811]
[1744331352648,13.1391,1522.2,1521.8,12.36982811]
[1744331352821,13.1391,1522.2,1521.8,18.94080811]
[1744331353151,13.1391,1522.2,1521.8,12.36981811]
[1744331353950,6.56947,1522.2,1521.8,5.79883811]
[1744331354249,13.13827,1522.3,1521.9,6.57056]
[1744331354418,6.56944,1522.2,1521.9,6.57056]
[1744331354618,13.13913,1522.2,1521.9,6.57056]
[1744331354818,6.56944,1522.2,1521.9,6.57056]
[1744331355258,6.56992,1522.1,1521.8,10.60298]
[1744331355465,6.56992,1522.1,1521.8,18.28385211]
[1744331355777,6.56992,1522.1,1521.8,11.71277211]
[1744331356480,21.49453,1522.4,1521.8,2.14169211]
[1744331356645,6.57239,1521.6,1521.4,1.112]
[1744331356844,8.125,1521.9,1521.4,1.112]
[1744331357076,7.11946,1522.2,1521.6,7.68375]
[1744331357077,7.62994,1522.1,1521.6,7.68375]
[1744331357238,13.14004,1522.1,1521.7,6.57154]
[1744331357438,6.56994,1522.1,1521.7,6.57154]
[1744331357751,13.63452,1522.2,1521.9,1.112]
[1744331357946,7.62907,1522.3,1521.9,14.25312]
[1744331357947,6.56907,1522.3,1521.9,14.25312]
[1744331358259,6.56907,1522.3,1522.0,6.57024]
[1744331358459,14.69317,1522.5,1521.9,1.112]
[1744331358648,6.57001,1522.1,1521.9,1.112]
[1744331358853,6.5703,1522.0,1521.9,1.112]
[1744331359050,6.5703,1522.0,1521.8,3.0]
[1744331359233,6.5703,1522.0,1521.8,3.50101781]
[1744331359672,6.5703,1522.0,1521.7,1.112]
[1744331359673,6.57116,1521.8,1521.7,1.112]
[1744331359971,6.57202,1521.6,1521.5,5.75212861]
[1744331360176,6.57202,1521.6,1521.5,1.112]
[1744331360564,13.1444,1521.6,1521.3,5.75212861]
[1744331360961,7.63073,1521.9,1521.3,5.75212861]
[1744331360962,13.1453,1521.5,1521.3,5.75212861]
[1744331361145,6.57208,1521.6,1521.3,5.75212861]
[1744331361344,6.57208,1521.6,1521.3,4.112]
[1744331361680,6.57208,1521.6,1521.3,10.68532]
[1744331361980,13.14435,1521.6,1521.3,4.112]
[1744331363581,6.57289,1521.4,1521.3,4.112]
[1744331363781,6.57289,1521.4,1521.2,0.48307322]
[1744331363956,6.57332,1521.3,1521.1,4.112]
[1744331364155,6.57332,1521.3,1521.1,1.112]
[1744331364541,6.57332,1521.3,1520.7,2.16078812]
[1744331364542,8.126,1521.3,1520.7,2.16078812]
[1744331364742,6.57548,1520.8,1520.7,2.16078812]
[1744331365366,13.15048,1520.9,1520.7,2.16078812]
[1744331365549,6.57548,1520.8,1520.7,2.16078812]
[1744331366713,6.57463,1521.0,1520.7,2.16078812]
[1744331366883,6.57463,1521.0,1520.7,4.8880977]
[1744331367047,6.57383,1521.2,1520.8,9.57531]
[1744331367376,8.126,1521.3,1520.8,9.57545]
[1744331367582,8.126,1521.3,1520.8,3.0]
[1744331367785,6.57438,1521.1,1520.8,3.0]
[1744331367995,6.57375,1521.2,1520.8,11.49173762]
[1744331368163,13.63939,1521.3,1521.0,1.095]
[1744331368562,6.5729,1521.4,1521.0,7.66947]
[1744331368762,12.7325,1521.5,1521.1,6.57395]
[1744331368963,12.7325,1521.5,1521.1,14.214845]
[1744331369162,12.7325,1521.5,1521.1,7.640845]
[1744331369387,9.73667457,1521.3,1521.1,7.640845]
[1744331369585,9.73667457,1521.3,1521.2,7.61225]
[1744331370466,9.73667457,1521.3,1521.2,1.0385]
[1744331371302,13.14618,1521.4,1521.2,1.0385]
[1744331371499,13.14629,1521.4,1521.2,1.0385]
[1744331371715,6.57389,1521.2,1520.9,4.0385]
[1744331371871,6.57332,1521.3,1520.9,4.0385]
[1744331372198,6.57443,1521.1,1520.9,4.0385]
[1744331375200,6.57378,1521.2,1520.9,4.0385]
[1744331375902,7.66554,1521.4,1521.0,6.57458]
[1744331376200,6.57304,1521.4,1521.1,1.0385]
[1744331376414,1.0925,1521.3,1520.7,2.08728812]
[1744331376563,1.0925,1521.3,1521.0,3.0]
[1744331376564,6.57346,1521.3,1521.0,3.0]
[1744331376903,6.57332,1521.3,1521.0,3.0]
[1744331377386,6.57296,1521.4,1521.0,10.635765]
[1744331377588,13.14607,1521.4,1521.0,17.210215]
[1744331377901,6.57334,1521.3,1521.0,10.635765]
[1744331378113,13.14617,1521.4,1521.0,17.210185]
[1744331378276,13.14617,1521.4,1521.0,10.635755]
[1744331378675,13.14617,1521.4,1521.0,17.210235]
[1744331378905,13.14617,1521.4,1521.0,10.635755]
[1744331380220,6.57296,1521.4,1521.0,17.210225]
[1744331380513,6.57296,1521.4,1521.1,8.2952025]
[1744331381274,6.57296,1521.4,1521.0,10.635755]
[1744331381479,6.5735,1521.3,1521.0,10.635755]
[1744331383014,6.5735,1521.3,1521.0,4.061335]
[1744331383211,6.57384,1521.2,1521.0,3.0]
[1744331383713,6.57434,1521.1,1520.9,1.0385]
[1744331385005,6.57547,1520.9,1520.7,2.15658812]
[1744331385322,6.57547,1520.9,1520.7,1.04878812]
[1744331385323,6.57522,1520.9,1520.7,1.04878812]
[1744331385545,6.57548,1520.8,1520.7,0.55]
[1744331386417,14.192,1520.9,1520.7,0.55]
[1744331386741,6.57548,1520.8,1520.7,0.55]
[1744331387222,7.12548,1520.8,1520.7,0.55]
[1744331389270,14.34627,1520.8,1520.7,0.55]
[1744331389914,7.63888,1520.2,1520.1,0.1]
[1744331390228,21.29987,1520.2,1520.1,0.1]
[1744331390429,23.23907,1520.2,1519.9,1e-05]
[1744331390629,8.18974,1520.0,1519.9,1e-05]
[1744331391714,22.05941884,1520.0,1519.9,1e-05]
[1744331392825,14.34973,1520.0,1519.9,1e-05]
[1744331393972,20.75473,1520.0,1519.9,1e-05]
[1744331394369,21.30473,1520.0,1519.9,1e-05]
[1744331395470,6.58038,1519.7,1519.3,10.61634]
[1744331395775,6.57987,1519.8,1519.3,6.22521688]
[1744331395981,6.57987,1519.8,1519.4,6.5812]
[1744331396281,6.57987,1519.8,1519.4,13.16251]
[1744331396644,0.55,1519.9,1519.3,4.0344]
[1744331396645,20.75473,1520.0,1519.6,6.58067]
[1744331396851,6.57856,1520.1,1519.7,6.58003]
[1744331397048,6.57942,1519.9,1519.6,7.62225]
[1744331397273,6.57915,1520.0,1519.6,8.684475]
[1744331397469,6.57954,1519.9,1519.6,1.0416]
[1744331397771,7.12902,1520.0,1519.6,7.62211]
[1744331398075,0.55,1520.0,1519.6,1.0416]
[1744331398241,6.58003,1519.8,1519.6,1.0416]
[1744331399036,13.48844,1519.9,1519.6,1.0416]
[1744331399578,6.58024,1519.7,1519.4,1.0416]
[1744331399875,6.58024,1519.7,1519.4,4.0416]
[1744331400179,0.55,1519.4,1518.9,1.0416]
[1744331400477,6.58409,1518.9,1518.7,1.52286812]
[1744331400673,0.55,1518.8,1518.6,0.3882538]
[1744331400847,7.60766,1519.0,1518.6,6.9731038]
[1744331401053,14.19126,1519.0,1518.6,6.9731038]
[1744331401391,6.58429,1518.8,1518.6,0.3882538]
[1744331403551,6.58319,1519.1,1518.8,0.50188403]
[1744331403883,7.13289,1519.1,1518.8,0.50188403]
[1744331404045,0.55,1519.1,1518.8,3.0]
[1744331404641,13.71606,1519.1,1518.8,3.0]
[1744331404846,13.71606,1519.1,1518.7,4.0416]
[1744331405059,6.58332,1519.0,1518.7,4.0416]
[1744331405378,7.1329,1519.1,1518.7,10.62611]
[1744331405967,7.1329,1519.1,1518.7,10.62603]
[1744331406469,7.1329,1519.1,1518.9,3.0]
[1744331406656,6.58248,1519.2,1518.9,3.0]
[1744331406858,6.58248,1519.2,1518.9,9.58367]
[1744331407979,13.16513,1519.2,1518.9,3.0]
[1744331408545,6.58248,1519.2,1518.9,3.0]
[1744331408877,6.58248,1519.2,1519.0,1.0416]
[1744331409086,13.49405,1519.3,1519.0,1.0416]
[1744331409259,6.58266,1519.2,1519.0,1.0416]
[1744331409844,13.49406,1519.3,1519.0,1.0416]
[1744331410056,13.49406,1519.3,1519.0,7.62481]
[1744331410441,6.912,1519.3,1519.1,6.58265]
[1744331410641,6.58119,1519.5,1519.1,6.58265]
[1744331410844,6.5807,1519.6,1519.2,13.1643]
[1744331411074,6.58127,1519.5,1519.1,9.58276]
[1744331411275,6.58168,1519.4,1519.1,9.58276]
[1744331411454,6.58168,1519.4,1519.1,3.0]
[1744331411654,6.58168,1519.4,1519.1,9.58284]
[1744331412085,6.58119,1519.5,1519.1,16.1655]
[1744331412086,13.16244,1519.5,1519.1,16.1655]
[1744331412376,6.58071,1519.6,1519.3,1.0797]
[1744331412578,69.89533,1519.7,1519.3,14.24347]
[1744331412879,6.58071,1519.6,1519.3,1.0797]
[1744331413178,7.13154,1519.4,1519.1,3.0]
[1744331413379,6.5827,1519.2,1519.0,1.0797]
[1744331413675,6.58284,1519.1,1518.9,3.0]
[1744331414185,6.58197,1519.3,1518.9,9.58353]
[1744331414547,13.16416,1519.3,1519.0,6.58325]
[1744331415076,6.58197,1519.3,1519.0,6.58325]
[1744331415381,7.19549,1519.5,1519.2,6.58206]
[1744331415382,6.15999,1519.5,1519.2,6.58206]
[1744331415558,6.58073,1519.6,1519.3,6.58196]
[1744331415758,0.55,1519.6,1519.3,6.58196]
[1744331416052,6.58073,1519.6,1519.2,13.16462]
[1744331416254,6.58073,1519.6,1519.3,6.58196]
[1744331416468,6.57951,1519.9,1519.5,1.0797]
[1744331416667,0.34281704,1520.3,1519.9,6.57923]
[1744331416668,20.68681,1520.2,1519.9,6.57923]
[1744331416869,6.57784,1520.3,1519.9,10.65901]
[1744331417071,6.57877,1520.1,1519.9,1.0797]
[1744331417248,6.57877,1520.1,1519.7,10.65976]
[1744331417578,6.57875,1520.1,1519.7,18.77676488]
[1744331417778,6.57853,1520.1,1519.8,0.15603801]
[1744331417978,6.57812,1520.2,1519.8,0.15603801]
[1744331418279,6.57771,1520.3,1519.9,6.5792]